fUSD/lending_fUSD_20250219
["ID","MTS","AMOUNT","RATE_DAILY","PERIOD"]
[353688339,1739991050103,-516.10462946,0.0001112,2]
[353688340,1739991050113,-500.0,0.0001112,2]
[353688341,1739991050123,-500.0,0.0001112,2]
[353688342,1739991050136,-500.0,0.0001112,2]
[353688343,1739991050146,-687.97,0.0001112,2]
[353688344,1739991050157,-500.0,0.0001112,2]
[353688345,1739991050167,-524.85,0.0001112,2]
[353688346,1739991050177,-763.25,0.0001112,2]
[353688347,1739991050187,-500.0,0.0001112,2]
[353688348,1739991050197,-1453.26,0.0001112,2]
[353688349,1739991050207,-2178.41,0.0001112,2]
[353688350,1739991050217,-1110.11,0.0001112,2]
[353688351,1739991050227,-500.0,0.0001112,2]
[353688352,1739991050238,-2978.68,0.0001112,2]
[353688353,1739991050252,-867.64,0.0001112,2]
[353688354,1739991050262,-500.0,0.0001112,2]
[353688355,1739991050272,-500.0,0.0001112,2]
[353688356,1739991050282,-811.92,0.0001112,2]
[353688357,1739991050292,-500.0,0.0001112,2]
[353688358,1739991050301,-774.36,0.0001112,2]
[353688359,1739991050311,-500.0,0.0001112,2]
[353688360,1739991050320,-909.17,0.0001112,2]
[353688361,1739991050329,-500.0,0.0001112,2]
[353688362,1739991050339,-500.0,0.0001112,2]
[353688363,1739991050349,-944.41,0.0001112,2]
[353688364,1739991050358,-481.59392768,0.0001112,2]
[353688365,1739991050368,-1667.3,0.0001112,2]
[353688366,1739991050381,-1335.65,0.0001112,2]
[353688367,1739991050391,-1536.77,0.0001112,2]
[353688368,1739991050401,-500.0,0.0001112,2]
[353688369,1739991050411,-1151.56,0.0001112,2]
[353688370,1739991050420,-500.0,0.0001112,2]
[353688371,1739991050435,-2300.26,0.0001112,2]
[353688372,1739991050445,-500.0,0.0001112,2]
[353688373,1739991050455,-3967.01,0.0001112,2]
[353688374,1739991050465,-1054.96,0.0001112,2]
[353688375,1739991050475,-500.0,0.0001112,2]
[353688376,1739991050485,-2151.49,0.0001112,2]
[353688377,1739991050494,-500.0,0.0001112,2]
[353688378,1739991050505,-500.0,0.0001112,2]
[353688379,1739991050515,-500.0,0.0001112,2]
[353688380,1739991050525,-1026.98,0.0001112,2]
[353688381,1739991050535,-1717.95,0.0001112,2]
[353688382,1739991050545,-500.0,0.0001112,2]
[353688383,1739991050554,-4000.0,0.0001112,2]
[353688384,1739991050564,-4000.0,0.0001112,2]
[353688385,1739991050574,-500.0,0.0001112,2]
[353688386,1739991050583,-4000.0,0.0001112,2]
[353688387,1739991050592,-4000.0,0.0001112,2]
[353688388,1739991050602,-723.0,0.0001112,2]
[353688389,1739991050613,-858.82,0.0001112,2]
[353688390,1739991050623,-736.71,0.0001112,2]
[353688391,1739991050634,-731.07,0.0001112,2]
[353688392,1739991050644,-500.0,0.0001112,2]
[353688393,1739991050654,-500.0,0.0001112,2]
[353688394,1739991050664,-808.06,0.0001112,2]
[353688395,1739991050674,-1042.18,0.0001112,2]
[353688396,1739991050684,-500.0,0.0001112,2]
[353688397,1739991050694,-500.0,0.0001112,2]
[353688398,1739991050704,-500.0,0.0001112,2]
[353688399,1739991050714,-1003.52,0.0001112,2]
[353688400,1739991050723,-500.0,0.0001112,2]
[353688401,1739991050733,-1216.45,0.0001112,2]
[353688402,1739991050747,-500.0,0.0001112,2]
[353688403,1739991050756,-897.65,0.0001112,2]
[353688404,1739991050765,-534.83,0.0001112,2]
[353688405,1739991050774,-969.77,0.0001112,2]
[353688406,1739991050783,-500.0,0.0001112,2]
[353688407,1739991050793,-1228.25,0.0001112,2]
[353688408,1739991050803,-500.0,0.0001112,2]
[353688409,1739991050813,-2264.91,0.0001112,2]
[353688410,1739991050823,-597.7,0.0001112,2]
[353688411,1739991050832,-500.0,0.0001112,2]
[353688412,1739991050842,-1031.26,0.0001112,2]
[353688413,1739991050851,-500.0,0.0001112,2]
[353688414,1739991050861,-500.0,0.0001112,2]
[353688415,1739991050870,-813.49,0.0001112,2]
[353688416,1739991050881,-500.0,0.0001112,2]
[353688417,1739991050891,-500.0,0.0001112,2]
[353688418,1739991050901,-500.0,0.0001112,2]
[353688419,1739991050911,-943.59,0.0001112,2]
[353688420,1739991050921,-807.9,0.0001112,2]
[353688421,1739991050931,-952.43,0.0001112,2]
[353688422,1739991050941,-1249.19,0.0001112,2]
[353688423,1739991050951,-1931.39,0.0001112,2]
[353688424,1739991050961,-699.69,0.0001112,2]
[353688425,1739991050971,-500.0,0.0001112,2]
[353688426,1739991050981,-500.0,0.0001112,2]
[353688427,1739991050991,-736.37,0.0001112,2]
[353688428,1739991051001,-500.0,0.0001112,2]
[353688429,1739991051011,-2136.43,0.0001112,2]
[353688430,1739991051021,-1349.59,0.0001112,2]
[353688431,1739991051031,-619.91,0.0001112,2]
[353688432,1739991051041,-500.0,0.0001112,2]
[353688433,1739991051051,-1308.13,0.0001112,2]
[353688434,1739991051061,-763.21,0.0001112,2]
[353688435,1739991051071,-500.0,0.0001112,2]
[353688436,1739991051080,-500.0,0.0001112,2]
[353688437,1739991051090,-676.6,0.0001112,2]
[353688438,1739991051100,-1669.19,0.0001112,2]
[353688439,1739991051110,-500.0,0.0001112,2]
[353688440,1739991051120,-2496.14,0.0001112,2]
[353688441,1739991051131,-838.79,0.0001112,2]
[353688442,1739991051141,-500.0,0.0001112,2]
[353688443,1739991051151,-533.51,0.0001112,2]
[353688444,1739991051161,-500.0,0.0001112,2]
[353688445,1739991051172,-844.7,0.0001112,2]
[353688446,1739991051184,-500.0,0.0001112,2]
[353688447,1739991051194,-1038.95,0.0001112,2]
[353688448,1739991051203,-500.0,0.0001112,2]
[353688449,1739991051213,-643.34,0.0001112,2]
[353688450,1739991051222,-500.0,0.0001112,2]
[353688451,1739991051232,-862.23,0.0001112,2]
[353688452,1739991051242,-1170.77,0.0001112,2]
[353688453,1739991051253,-1682.85,0.0001112,2]
[353688454,1739991051263,-972.98,0.0001112,2]
[353688455,1739991051273,-1036.38,0.0001112,2]
[353688456,1739991051283,-500.0,0.0001112,2]
[353688457,1739991051293,-665.65,0.0001112,2]
[353688458,1739991051302,-500.0,0.0001112,2]
[353688459,1739991051312,-500.0,0.0001112,2]
[353688460,1739991051322,-500.0,0.0001112,2]
[353688461,1739991051332,-816.32,0.0001112,2]
[353688462,1739991051341,-500.0,0.0001112,2]
[353688463,1739991051351,-1472.21,0.0001112,2]
[353688464,1739991051360,-545.24238585,0.0001112,2]
[353688465,1739991051370,-1143.91,0.0001112,2]
[353688466,1739991051382,-581.26,0.0001112,2]
[353688467,1739991051391,-500.0,0.0001112,2]
[353688468,1739991051401,-7684.69,0.0001112,2]
[353688469,1739991051411,-500.0,0.0001112,2]
[353688470,1739991051420,-500.0,0.0001112,2]
[353688471,1739991051430,-500.0,0.0001112,2]
[353688472,1739991051443,-1239.55,0.0001112,2]
[353688473,1739991051453,-1609.82,0.0001112,2]
[353688474,1739991051463,-500.0,0.0001112,2]
[353688475,1739991051472,-694.56,0.0001112,2]
[353688476,1739991051483,-500.0,0.0001112,2]
[353688477,1739991051494,-1000.0,0.0001112,2]
[353688478,1739991051504,-677.2,0.0001112,2]
[353688479,1739991051516,-500.0,0.0001112,2]
[353688480,1739991051526,-500.0,0.0001112,2]
[353688481,1739991051536,-1545.54,0.0001112,2]
[353688482,1739991051546,-1288.85,0.0001112,2]
[353688483,1739991051556,-1349.76,0.0001112,2]
[353688484,1739991051566,-591.57,0.0001112,2]
[353688485,1739991051575,-500.0,0.0001112,2]
[353688486,1739991051585,-500.0,0.0001112,2]
[353688487,1739991051596,-1045.64,0.0001112,2]
[353688488,1739991051606,-500.0,0.0001112,2]
[353688489,1739991051616,-544.71,0.0001112,2]
[353688490,1739991051626,-515.07,0.0001112,2]
[353688491,1739991051638,-500.0,0.0001112,2]
[353688492,1739991051648,-500.0,0.0001112,2]
[353688493,1739991051658,-500.0,0.0001112,2]
[353688494,1739991051667,-500.0,0.0001112,2]
[353688495,1739991051677,-500.0,0.0001112,2]
[353688496,1739991051687,-864.21,0.0001112,2]
[353688497,1739991051698,-500.0,0.0001112,2]
[353688498,1739991051708,-1217.73,0.0001112,2]
[353688499,1739991051717,-1242.44,0.0001112,2]
[353688500,1739991051727,-500.0,0.0001112,2]
[353688501,1739991051737,-608.9,0.0001112,2]
[353688502,1739991051747,-500.0,0.0001112,2]
[353688503,1739991051757,-500.0,0.0001112,2]
[353688504,1739991051766,-500.0,0.0001112,2]
[353688505,1739991051776,-500.0,0.0001112,2]
[353688506,1739991051786,-1333.33,0.0001112,2]
[353688507,1739991051795,-2099.28,0.0001112,2]
[353688508,1739991051805,-646.88,0.0001112,2]
[353688509,1739991051815,-1098.74,0.0001112,2]
[353688510,1739991051824,-500.0,0.0001112,2]
[353688511,1739991051834,-500.0,0.0001112,2]
[353688512,1739991051843,-631.78,0.0001112,2]
[353688513,1739991051853,-1305.78,0.0001112,2]
[353688514,1739991051863,-500.0,0.0001112,2]
[353688515,1739991051873,-591.42,0.0001112,2]
[353688516,1739991051883,-500.0,0.0001112,2]
[353688517,1739991051893,-814.94,0.0001112,2]
[353688518,1739991051903,-500.0,0.0001112,2]
[353688519,1739991051912,-500.0,0.0001112,2]
[353688520,1739991051922,-500.0,0.0001112,2]
[353688521,1739991051932,-151.0,0.0001112,2]
[353688522,1739991051942,-1698.82,0.0001112,2]
[353688523,1739991051952,-1656.29,0.0001112,2]
[353688524,1739991051962,-500.0,0.0001112,2]
[353688525,1739991051971,-500.0,0.0001112,2]
[353688526,1739991051981,-958.07,0.0001112,2]
[353688527,1739991051991,-1140.78,0.0001112,2]
[353688528,1739991052000,-1343.79,0.0001112,2]
[353688529,1739991052010,-500.0,0.0001112,2]
[353688530,1739991052019,-500.0,0.0001112,2]
[353688531,1739991052029,-500.0,0.0001112,2]
[353688532,1739991052040,-3616.83,0.0001112,2]
[353688533,1739991052050,-1109.34,0.0001112,2]
[353688534,1739991052060,-940.17,0.0001112,2]
[353688535,1739991052071,-500.0,0.0001112,2]
[353688536,1739991052081,-500.0,0.0001112,2]
[353688537,1739991052091,-500.0,0.0001112,2]
[353688538,1739991052101,-500.0,0.0001112,2]
[353688539,1739991052110,-1068.94,0.0001112,2]
[353688540,1739991052119,-151.0,0.0001112,2]
[353688541,1739991052129,-500.0,0.0001112,2]
[353688542,1739991052139,-1192.02,0.0001112,2]
[353688543,1739991052149,-1134.66,0.0001112,2]
[353688544,1739991052159,-500.0,0.0001112,2]
[353688545,1739991052169,-500.0,0.0001112,2]
[353688546,1739991052179,-500.0,0.0001112,2]
[353688547,1739991052189,-1387.53,0.0001112,2]
[353688548,1739991052198,-500.0,0.0001112,2]
[353688549,1739991052208,-500.0,0.0001112,2]
[353688550,1739991052218,-525.63,0.0001112,2]
[353688551,1739991052228,-500.0,0.0001112,2]
[353688552,1739991052238,-500.0,0.0001112,2]
[353688553,1739991052248,-500.0,0.0001112,2]
[353688554,1739991052259,-1867.51,0.0001112,2]
[353688555,1739991052269,-1262.86,0.0001112,2]
[353688556,1739991052279,-500.0,0.0001112,2]
[353688557,1739991052288,-1225.46,0.0001112,2]
[353688558,1739991052299,-500.0,0.0001112,2]
[353688559,1739991052309,-500.0,0.0001112,2]
[353688560,1739991052320,-849.02,0.0001112,2]
[353688561,1739991052331,-1283.85,0.0001112,2]
[353688562,1739991052341,-1033.15,0.0001112,2]
[353688563,1739991052351,-500.0,0.0001112,2]
[353688564,1739991052360,-1890.5,0.0001112,2]
[353688565,1739991052370,-500.0,0.0001112,2]
[353688566,1739991052380,-500.0,0.0001112,2]
[353688567,1739991052389,-563.08,0.0001112,2]
[353688568,1739991052399,-1247.13,0.0001112,2]
[353688569,1739991052409,-200.0,0.0001112,2]
[353688570,1739991052418,-500.0,0.0001112,2]
[353688571,1739991052430,-500.0,0.0001112,2]
[353688572,1739991052439,-500.0,0.0001112,2]
[353688573,1739991052449,-953.52,0.0001112,2]
[353688574,1739991052458,-701.13,0.0001112,2]
[353688575,1739991052469,-606.51,0.0001112,2]
[353688576,1739991052478,-500.0,0.0001112,2]
[353688577,1739991052488,-500.0,0.0001112,2]
[353688578,1739991052497,-500.0,0.0001112,2]
[353688579,1739991052507,-837.99,0.0001112,2]
[353688580,1739991052519,-758.16,0.0001112,2]
[353688581,1739991052535,-500.0,0.0001112,2]
[353688582,1739991052544,-500.0,0.0001112,2]
[353688583,1739991052553,-852.55,0.0001112,2]
[353688584,1739991052563,-1040.5,0.0001112,2]
[353688585,1739991052572,-626.51,0.0001112,2]
[353688586,1739991052582,-500.0,0.0001112,2]
[353688587,1739991052591,-500.0,0.0001112,2]
[353688588,1739991052601,-515.1089506,0.0001112,2]
[353688589,1739991052611,-500.0,0.0001112,2]
[353688590,1739991052621,-500.0,0.0001112,2]
[353688591,1739991052630,-1225.45,0.0001112,2]
[353688592,1739991052640,-500.0,0.0001112,2]
[353688593,1739991052650,-150.0,0.00011154,2]
[353688594,1739991052661,-220.9629925,0.00011163,2]
[353688595,1739991052671,-1398.28713769,0.00011184,2]
[353688596,1739991052681,-3046.97846164,0.00011185,2]
[353688597,1739991052690,-1000.0,0.000112,2]
[353688598,1739991052700,-250.0,0.000112,2]
[353688599,1739991052710,-250.0,0.000112,2]
[353688600,1739991052719,-250.0,0.000112,2]
[353688601,1739991052729,-250.0,0.000112,2]
[353688602,1739991052739,-250.0,0.000112,2]
[353688603,1739991052749,-250.0,0.000112,2]
[353688604,1739991052759,-250.0,0.000112,2]
[353688605,1739991052769,-250.0,0.000112,2]
[353688606,1739991052779,-250.0,0.000112,2]
[353688607,1739991052788,-250.0,0.000112,2]
[353688608,1739991052799,-250.0,0.000112,2]
[353688609,1739991052808,-250.0,0.000112,2]
[353688610,1739991052819,-250.0,0.000112,2]
[353688611,1739991052830,-250.9,0.000112,2]
[353688612,1739991052840,-500.0,0.00011201,2]
[353688613,1739991052850,-500.0,0.00011201,2]
[353688614,1739991052860,-500.0,0.00011201,2]
[353688615,1739991052869,-958.09,0.00011201,2]
[353688616,1739991052880,-500.0,0.00011201,2]
[353688617,1739991052890,-500.0,0.00011201,2]
[353688618,1739991052900,-638.44,0.00011201,2]
[353688619,1739991052909,-1305.17,0.00011201,2]
[353688620,1739991052919,-500.0,0.00011201,2]
[353688621,1739991052932,-500.0,0.00011201,2]
[353688622,1739991052942,-500.0,0.00011201,2]
[353688623,1739991052952,-500.0,0.00011201,2]
[353688624,1739991052961,-1013.4,0.00011201,2]
[353688625,1739991052971,-500.0,0.00011201,2]
[353688626,1739991052981,-800.82,0.00011201,2]
[353688627,1739991052991,-500.0,0.00011201,2]
[353688628,1739991053000,-1291.22,0.00011201,2]
[353688629,1739991053010,-500.0,0.00011201,2]
[353688630,1739991053019,-500.0,0.00011201,2]
[353688631,1739991053029,-500.0,0.00011201,2]
[353688632,1739991053039,-1100.17,0.00011201,2]
[353688633,1739991053049,-659.34,0.00011201,2]
[353688634,1739991053060,-1285.43,0.00011201,2]
[353688635,1739991053070,-2055.78,0.00011201,2]
[353688636,1739991053080,-1176.26,0.00011201,2]
[353688637,1739991053337,-1598.02,0.00011201,2]
[353688638,1739991053347,-1177.64,0.00011201,2]
[353688639,1739991053356,-1728.13,0.00011201,2]
[353688640,1739991053368,-1464.57,0.00011201,2]
[353688641,1739991053378,-500.0,0.00011201,2]
[353688642,1739991053387,-988.1,0.00011201,2]
[353688643,1739991053396,-1523.71,0.00011201,2]
[353688644,1739991053405,-1697.79,0.00011201,2]
[353688645,1739991053414,-914.84,0.00011201,2]
[353688646,1739991053423,-1345.01,0.00011201,2]
[353688647,1739991053433,-1899.5,0.00011201,2]
[353688648,1739991053445,-500.0,0.00011201,2]
[353688649,1739991053455,-835.97,0.00011201,2]
[353688650,1739991053464,-1253.59,0.00011201,2]
[353688651,1739991053473,-500.0,0.00011201,2]
[353688652,1739991053485,-676.35,0.00011201,2]
[353688653,1739991053495,-1199.2,0.00011201,2]
[353688654,1739991053504,-1444.06,0.00011201,2]
[353688655,1739991053515,-1165.51,0.00011201,2]
[353688656,1739991053524,-1110.09,0.00011201,2]
[353688657,1739991053533,-955.77,0.00011201,2]
[353688658,1739991053560,-1702.36,0.00011201,2]
[353688659,1739991053569,-500.0,0.00011201,2]
[353688660,1739991053579,-500.0,0.00011201,2]
[353688661,1739991053588,-1068.07,0.00011201,2]
[353688662,1739991053598,-541.29,0.00011201,2]
[353688663,1739991053608,-1380.32,0.00011201,2]
[353688664,1739991053617,-564.03,0.00011202,2]
[353688665,1739991053627,-500.0,0.00011202,2]
[353688666,1739991053637,-500.0,0.00011202,2]
[353688667,1739991053646,-500.0,0.00011202,2]
[353688668,1739991053656,-381.98230396,0.00011202,2]
[353688669,1739991053665,-335.282174,0.00011202,2]
[353688670,1739991053676,-500.0,0.00011202,2]
[353688671,1739991053687,-445.363227,0.00011202,2]
[353688672,1739991053697,-500.0,0.00011202,2]
[353688673,1739991053707,-566.24,0.00011202,2]
[353688674,1739991053717,-500.0,0.00011202,2]
[353688675,1739991053727,-705.7,0.00011202,2]
[353688676,1739991053737,-1007.94,0.00011202,2]
[353688677,1739991053746,-500.0,0.00011202,2]
[353688678,1739991053756,-500.0,0.00011202,2]
[353688679,1739991053765,-1164.92,0.00011202,2]
[353688680,1739991053775,-1009.77,0.00011202,2]
[353688681,1739991053784,-1086.24,0.00011202,2]
[353688682,1739991053794,-1103.11,0.00011202,2]
[353688683,1739991053816,-500.0,0.00011202,2]
[353688684,1739991053826,-500.0,0.00011202,2]
[353688685,1739991053836,-689.09,0.00011202,2]
[353688686,1739991053846,-500.0,0.00011202,2]
[353688687,1739991053857,-1109.15,0.00011202,2]
[353688688,1739991053867,-752.25,0.00011202,2]
[353688689,1739991053877,-712.53,0.00011202,2]
[353688690,1739991053888,-500.0,0.00011202,2]
[353688691,1739991053898,-500.0,0.00011202,2]
[353688692,1739991053909,-844.15,0.00011202,2]
[353688693,1739991053919,-500.0,0.00011202,2]
[353688694,1739991053929,-1035.94,0.00011202,2]
[353688695,1739991053938,-1177.99,0.00011202,2]
[353688696,1739991053949,-500.0,0.00011202,2]
[353688697,1739991053959,-970.06,0.00011202,2]
[353688698,1739991053969,-500.0,0.00011202,2]
[353688699,1739991053980,-842.16,0.00011202,2]
[353688700,1739991053990,-1231.95,0.00011202,2]
[353688701,1739991054000,-833.68,0.00011202,2]
[353688702,1739991054011,-1384.51,0.00011202,2]
[353688703,1739991054020,-992.43,0.00011202,2]
[353688704,1739991054031,-700.4,0.00011202,2]
[353688705,1739991054041,-896.41,0.00011202,2]
[353688706,1739991054051,-500.0,0.00011202,2]
[353688707,1739991054062,-835.28,0.00011202,2]
[353688708,1739991054072,-638.47,0.00011202,2]
[353688709,1739991054082,-730.1,0.00011202,2]
[353688710,1739991054092,-722.91,0.00011202,2]
[353688711,1739991054102,-700.98,0.00011202,2]
[353688712,1739991054113,-500.0,0.00011202,2]
[353688713,1739991054122,-887.61,0.00011202,2]
[353688714,1739991054133,-1299.23,0.00011202,2]
[353688715,1739991054143,-537.11,0.00011202,2]
[353688716,1739991054153,-500.0,0.00011202,2]
[353688717,1739991054164,-1023.26,0.00011202,2]
[353688718,1739991054173,-500.0,0.00011202,2]
[353688719,1739991054183,-500.0,0.00011202,2]
[353688720,1739991054193,-1193.06,0.00011202,2]
[353688721,1739991054203,-809.28,0.00011202,2]
[353688722,1739991054212,-569.98,0.00011202,2]
[353688723,1739991054222,-947.29,0.00011202,2]
[353688724,1739991054231,-738.85,0.00011202,2]
[353688725,1739991054242,-500.0,0.00011202,2]
[353688726,1739991054253,-819.36,0.00011202,2]
[353688727,1739991054263,-504.01,0.00011202,2]
[353688728,1739991054273,-716.57,0.00011202,2]
[353688729,1739991054283,-841.31,0.00011202,2]
[353688730,1739991054293,-1059.78,0.00011202,2]
[353688731,1739991054303,-685.17,0.00011202,2]
[353688732,1739991054313,-948.49,0.00011202,2]
[353688733,1739991054323,-1210.93,0.00011202,2]
[353688734,1739991054333,-1232.61,0.00011202,2]
[353688735,1739991054343,-660.75,0.00011202,2]
[353688736,1739991054353,-722.62,0.00011202,2]
[353688737,1739991054363,-856.89,0.00011202,2]
[353688738,1739991054373,-500.0,0.00011202,2]
[353688739,1739991054383,-500.0,0.00011202,2]
[353688740,1739991054392,-529.4,0.00011202,2]
[353688741,1739991054402,-500.0,0.00011202,2]
[353688742,1739991054412,-500.0,0.00011202,2]
[353688743,1739991054422,-500.0,0.00011202,2]
[353688744,1739991054432,-1123.65,0.00011202,2]
[353688745,1739991054444,-500.0,0.00011202,2]
[353688746,1739991054454,-500.0,0.00011202,2]
[353688747,1739991054463,-767.14,0.00011202,2]
[353688748,1739991054473,-500.0,0.00011202,2]
[353688749,1739991054483,-838.25,0.00011202,2]
[353688750,1739991054492,-500.0,0.00011202,2]
[353688751,1739991054502,-500.0,0.00011202,2]
[353688752,1739991054512,-500.0,0.00011202,2]
[353688753,1739991054522,-857.74,0.00011202,2]
[353688754,1739991054531,-702.31,0.00011202,2]
[353688755,1739991054541,-500.0,0.00011202,2]
[353688756,1739991054550,-1022.47,0.00011202,2]
[353688757,1739991054560,-766.99,0.00011202,2]
[353688758,1739991054570,-1271.18,0.00011202,2]
[353688759,1739991054579,-562.14,0.00011202,2]
[353688760,1739991054589,-1255.93,0.00011202,2]
[353688761,1739991054599,-735.72,0.00011202,2]
[353688762,1739991054627,-1023.77,0.00011202,2]
[353688763,1739991054638,-500.0,0.00011202,2]
[353688764,1739991054647,-741.16,0.00011202,2]
[353688765,1739991054656,-500.0,0.00011202,2]
[353688766,1739991054666,-500.0,0.00011202,2]
[353688767,1739991054675,-500.0,0.00011202,2]
[353688768,1739991054685,-1492.46,0.00011202,2]
[353688769,1739991054694,-1211.99,0.00011202,2]
[353688770,1739991054704,-908.55,0.00011202,2]
[353688771,1739991054713,-1115.3,0.00011202,2]
[353688772,1739991054723,-622.28,0.00011202,2]
[353688773,1739991054732,-725.41,0.00011202,2]
[353688774,1739991054741,-1312.13,0.00011202,2]
[353688775,1739991054751,-500.0,0.00011202,2]
[353688776,1739991054761,-500.0,0.00011202,2]
[353688777,1739991054771,-1135.89,0.00011202,2]
[353688778,1739991054780,-500.0,0.00011202,2]
[353688779,1739991054790,-500.0,0.00011202,2]
[353688780,1739991054799,-626.24,0.00011202,2]
[353688781,1739991054809,-873.22,0.00011202,2]
[353688782,1739991054818,-828.64,0.00011202,2]
[353688783,1739991054827,-1067.13,0.00011202,2]
[353688784,1739991054836,-760.82,0.00011202,2]
[353688785,1739991054846,-500.0,0.00011202,2]
[353688786,1739991054856,-959.81,0.00011202,2]
[353688787,1739991054866,-500.0,0.00011202,2]
[353688788,1739991054875,-1130.2,0.00011202,2]
[353688789,1739991054885,-500.0,0.00011202,2]
[353688790,1739991054894,-500.0,0.00011202,2]
[353688791,1739991054903,-621.03,0.00011202,2]
[353688792,1739991054913,-837.8,0.00011202,2]
[353688793,1739991054923,-500.0,0.00011202,2]
[353688794,1739991054933,-500.0,0.00011202,2]
[353688795,1739991054942,-687.97,0.00011202,2]
[353688796,1739991054952,-500.0,0.00011202,2]
[353688797,1739991054962,-524.85,0.00011202,2]
[353688798,1739991054971,-763.25,0.00011202,2]
[353688799,1739991054981,-1453.26,0.00011202,2]
[353688800,1739991054991,-2178.41,0.00011202,2]
[353688801,1739991055001,-500.0,0.00011202,2]
[353688802,1739991055011,-2978.68,0.00011202,2]
[353688803,1739991055021,-867.64,0.00011202,2]
[353688804,1739991055031,-500.0,0.00011202,2]
[353688805,1739991055041,-500.0,0.00011202,2]
[353688806,1739991055051,-500.0,0.00011202,2]
[353688807,1739991055062,-500.0,0.00011202,2]
[353688808,1739991055073,-909.17,0.00011202,2]
[353688809,1739991055083,-659.34,0.00011202,2]
[353688810,1739991055093,-500.0,0.00011202,2]
[353688811,1739991055103,-500.0,0.00011202,2]
[353688812,1739991055113,-944.41,0.00011202,2]
[353688813,1739991055123,-1667.3,0.00011202,2]
[353688814,1739991055134,-1335.65,0.00011202,2]
[353688815,1739991055144,-1536.77,0.00011202,2]
[353688816,1739991055154,-500.0,0.00011202,2]
[353688817,1739991055165,-2300.26,0.00011202,2]
[353688818,1739991055175,-500.0,0.00011202,2]
[353688819,1739991055185,-3967.01,0.00011202,2]
[353688820,1739991055195,-1054.96,0.00011202,2]
[353688821,1739991055206,-500.0,0.00011202,2]
[353688822,1739991055216,-2151.49,0.00011202,2]
[353688823,1739991055226,-500.0,0.00011202,2]
[353688824,1739991055235,-1026.98,0.00011202,2]
[353688825,1739991055245,-1717.95,0.00011202,2]
[353688826,1739991055257,-500.0,0.00011202,2]
[353688827,1739991055267,-500.0,0.00011202,2]
[353688828,1739991055278,-723.0,0.00011202,2]
[353688829,1739991055289,-858.82,0.00011202,2]
[353688830,1739991055299,-736.71,0.00011202,2]
[353688831,1739991055309,-500.0,0.00011202,2]
[353688832,1739991055318,-731.07,0.00011202,2]
[353688833,1739991055328,-808.06,0.00011202,2]
[353688834,1739991055338,-500.0,0.00011202,2]
[353688835,1739991055348,-500.0,0.00011202,2]
[353688836,1739991055358,-1003.52,0.00011202,2]
[353688837,1739991055367,-500.0,0.00011202,2]
[353688838,1739991055377,-1216.45,0.00011202,2]